fUSD/lending_fUSD_20240628
["ID","MTS","AMOUNT","RATE_DAILY","PERIOD"]
[330520970,1719558667391,-1624.98,0.00019178,2]
[330520971,1719558667400,-2052.93,0.00019178,2]
[330520972,1719558667410,-1900.8,0.00019178,2]
[330520973,1719558667418,-1582.92,0.00019178,2]
[330520974,1719558667427,-10674.02,0.00019178,2]
[330520975,1719558667438,-2841.37,0.00019178,2]
[330520976,1719558667447,-500.0,0.00019178,2]
[330520977,1719558667458,-3091.06,0.00019178,2]
[330520978,1719558667467,-956.48,0.00019178,2]
[330520979,1719558667476,-1314.15,0.00019178,2]
[330520980,1719558667485,-500.0,0.00019178,2]
[330520981,1719558667494,-500.0,0.00019178,2]
[330520982,1719558667504,-500.0,0.00019178,2]
[330520983,1719558667513,-1430.61,0.00019178,2]
[330520984,1719558667522,-1049.59,0.00019178,2]
[330520985,1719558667533,-500.0,0.00019178,2]
[330520986,1719558667542,-520.64,0.00019178,2]
[330520987,1719558667551,-1837.31,0.00019178,2]
[330520988,1719558667562,-5415.95,0.00019178,2]
[330520989,1719558667573,-500.0,0.00019178,2]
[330520990,1719558667583,-3021.99,0.00019178,2]
[330520991,1719558667593,-1765.61,0.00019178,2]
[330520992,1719558667603,-151.0,0.00019178,2]
[330520993,1719558667614,-500.0,0.00019178,2]
[330520994,1719558667623,-604.02,0.00019178,2]
[330520995,1719558667633,-500.0,0.00019178,2]
[330520996,1719558667642,-151.0,0.00019178,2]
[330520997,1719558667652,-151.0,0.00019178,2]
[330520998,1719558667662,-397.04577838,0.00019178,2]
[330520999,1719558667671,-151.0,0.00019178,2]
[330521000,1719558667680,-151.0,0.00019178,2]
[330521001,1719558667690,-151.0,0.00019178,2]
[330521002,1719558667701,-151.0,0.00019178,2]
[330521003,1719558667710,-151.0,0.00019178,2]
[330521004,1719558667722,-151.0,0.00019178,2]
[330521005,1719558667732,-151.0,0.00019178,2]
[330521006,1719558667742,-151.0,0.00019178,2]
[330521007,1719558667752,-3522.3,0.00019178,2]
[330521008,1719558667762,-151.0,0.00019178,2]
[330521009,1719558667772,-500.0,0.00019178,2]
[330521010,1719558667781,-1331.89,0.00019178,2]
[330521011,1719558667791,-500.0,0.00019178,2]
[330521012,1719558667801,-246.414055,0.00019178,2]
[330521013,1719558667810,-866.52,0.00019178,2]
[330521014,1719558667820,-1300.16,0.00019178,2]
[330521015,1719558667830,-207.38321994,0.00019178,2]
[330521016,1719558667841,-745.7,0.00019178,2]
[330521017,1719558667851,-500.0,0.00019178,2]
[330521018,1719558667861,-500.0,0.00019178,2]
[330521019,1719558667870,-500.0,0.00019178,2]
[330521020,1719558667880,-500.0,0.00019178,2]
[330521021,1719558667889,-2212.34,0.00019178,2]
[330521022,1719558667899,-151.0,0.00019178,2]
[330521023,1719558667909,-500.0,0.00019178,2]
[330521024,1719558667919,-500.0,0.00019178,2]
[330521025,1719558667929,-151.0,0.00019178,2]
[330521026,1719558667938,-151.0,0.00019178,2]
[330521027,1719558667949,-1071.7,0.00019178,2]
[330521028,1719558667959,-500.0,0.00019178,2]
[330521029,1719558667969,-500.0,0.00019178,2]
[330521030,1719558667980,-155.684385,0.00019178,2]
[330521031,1719558667990,-500.0,0.00019178,2]
[330521032,1719558668000,-747.3,0.00019178,2]
[330521033,1719558668009,-500.0,0.00019178,2]
[330521034,1719558668018,-500.0,0.00019178,2]
[330521035,1719558668027,-2105.34,0.00019178,2]
[330521036,1719558668037,-845.42,0.00019178,2]
[330521037,1719558668047,-500.0,0.00019178,2]
[330521038,1719558668057,-2493.7,0.00019178,2]
[330521039,1719558668067,-584.92,0.00019178,2]
[330521040,1719558668086,-500.0,0.00019178,2]
[330521041,1719558668096,-5013.76,0.00019178,2]
[330521042,1719558668106,-657.89,0.00019178,2]
[330521043,1719558668116,-500.0,0.00019178,2]
[330521044,1719558668128,-500.0,0.00019178,2]
[330521045,1719558668139,-500.0,0.00019178,2]
[330521046,1719558668150,-500.0,0.00019178,2]
[330521047,1719558668160,-578.05510267,0.00019178,2]
[330521048,1719558668170,-2163.32,0.00019178,2]
[330521049,1719558668179,-1999.05,0.00019178,2]
[330521050,1719558668189,-3137.41,0.00019178,2]
[330521051,1719558668199,-500.0,0.00019178,2]
[330521052,1719558668209,-3653.82,0.00019178,2]
[330521053,1719558668219,-500.0,0.00019178,2]
[330521054,1719558668229,-3665.13,0.00019178,2]
[330521055,1719558668239,-500.0,0.00019178,2]
[330521056,1719558668250,-500.0,0.00019178,2]
[330521057,1719558668259,-500.0,0.00019178,2]
[330521058,1719558668524,-151.980682,0.00019178,2]
[330521059,1719558668534,-1851.84,0.00019178,2]
[330521060,1719558668543,-500.0,0.00019178,2]
[330521061,1719558668553,-602.51,0.00019178,2]
[330521062,1719558668563,-500.0,0.00019178,2]
[330521063,1719558668572,-151.0,0.00019178,2]
[330521064,1719558668582,-151.0,0.00019178,2]
[330521065,1719558668592,-500.0,0.00019178,2]
[330521066,1719558668601,-1695.79,0.00019178,2]
[330521067,1719558668612,-500.0,0.00019178,2]
[330521068,1719558668621,-151.0,0.00019178,2]
[330521069,1719558668630,-151.0,0.00019178,2]
[330521070,1719558668640,-151.0,0.00019178,2]
[330521071,1719558668650,-500.0,0.00019178,2]
[330521072,1719558668659,-151.0,0.00019178,2]
[330521073,1719558668669,-500.0,0.00019178,2]
[330521074,1719558668678,-500.0,0.00019178,2]
[330521075,1719558668687,-3145.98,0.00019178,2]
[330521076,1719558668697,-200.0,0.00019178,2]
[330521077,1719558668706,-1101.32,0.00019178,2]
[330521078,1719558668715,-755.9,0.00019178,2]
[330521079,1719558668725,-500.0,0.00019178,2]
[330521080,1719558668735,-914.87,0.00019178,2]
[330521081,1719558668745,-244.641768,0.00019178,2]
[330521082,1719558668754,-1796.39,0.00019178,2]
[330521083,1719558668764,-591.28,0.00019178,2]
[330521084,1719558668773,-5431.77,0.00019178,2]
[330521085,1719558668783,-2569.56,0.00019178,2]
[330521086,1719558668792,-500.0,0.00019178,2]
[330521087,1719558668802,-500.0,0.00019178,2]
[330521088,1719558668811,-500.0,0.00019178,2]
[330521089,1719558668822,-500.0,0.00019178,2]
[330521090,1719558668832,-554.09,0.00019178,2]
[330521091,1719558668842,-500.0,0.00019178,2]
[330521092,1719558668852,-500.0,0.00019178,2]
[330521093,1719558668863,-5512.98,0.00019178,2]
[330521094,1719558668873,-500.0,0.00019178,2]
[330521095,1719558668882,-500.0,0.00019178,2]
[330521096,1719558668895,-445.173773,0.00019178,2]
[330521097,1719558668906,-500.0,0.00019178,2]
[330521098,1719558668916,-500.0,0.00019178,2]
[330521099,1719558668925,-500.0,0.00019178,2]
[330521100,1719558668935,-500.0,0.00019178,2]
[330521101,1719558668945,-445.173773,0.00019178,2]
[330521102,1719558668955,-500.0,0.00019178,2]
[330521103,1719558668964,-659.49,0.00019178,2]
[330521104,1719558668973,-500.0,0.00019178,2]
[330521105,1719558668983,-445.173773,0.00019178,2]
[330521106,1719558668992,-500.0,0.00019178,2]
[330521107,1719558669002,-500.0,0.00019178,2]
[330521108,1719558669012,-500.0,0.00019178,2]
[330521109,1719558669022,-445.173773,0.00019178,2]
[330521110,1719558669031,-500.0,0.00019178,2]
[330521111,1719558669041,-500.0,0.00019178,2]
[330521112,1719558669051,-445.173773,0.00019178,2]
[330521113,1719558669060,-536.97,0.00019178,2]
[330521114,1719558669071,-500.0,0.00019178,2]
[330521115,1719558669084,-445.173773,0.00019178,2]
[330521116,1719558669095,-500.0,0.00019178,2]
[330521117,1719558669105,-3385.67,0.00019178,2]
[330521118,1719558669116,-500.0,0.00019178,2]
[330521119,1719558669127,-500.0,0.00019178,2]
[330521120,1719558669138,-330.04933444,0.00019178,2]
[330521121,1719558669150,-445.173773,0.00019178,2]
[330521122,1719558669164,-560.95,0.00019178,2]
[330521123,1719558669175,-566.3,0.00019178,2]
[330521124,1719558669185,-445.173773,0.00019178,2]
[330521125,1719558669195,-445.173773,0.00019178,2]
[330521126,1719558669204,-445.173773,0.00019178,2]
[330521127,1719558669214,-153.001538,0.00019178,2]
[330521128,1719558669224,-500.0,0.00019178,2]
[330521129,1719558669233,-512.27,0.00019178,2]
[330521130,1719558669243,-445.173773,0.00019178,2]
[330521131,1719558669253,-2091.6,0.00019178,2]
[330521132,1719558669262,-500.0,0.00019178,2]
[330521133,1719558669272,-445.173773,0.00019178,2]
[330521134,1719558669282,-3466.2,0.00019178,2]
[330521135,1719558669291,-500.0,0.00019178,2]
[330521136,1719558669301,-5009.72,0.00019178,2]
[330521137,1719558669311,-3615.19,0.00019178,2]
[330521138,1719558669321,-500.0,0.00019178,2]
[330521139,1719558669330,-500.0,0.00019178,2]
[330521140,1719558669339,-1795.81,0.00019178,2]
[330521141,1719558669349,-1071.39,0.00019178,2]
[330521142,1719558669359,-1164.72,0.00019178,2]
[330521143,1719558669369,-151.0,0.00019178,2]
[330521144,1719558669379,-500.0,0.00019178,2]
[330521145,1719558669388,-151.0,0.00019178,2]
[330521146,1719558669398,-151.0,0.00019178,2]
[330521147,1719558669408,-715.51,0.00019178,2]
[330521148,1719558669418,-500.0,0.00019178,2]
[330521149,1719558669427,-555.34,0.00019178,2]
[330521150,1719558669437,-500.0,0.00019178,2]
[330521151,1719558669446,-1212.98,0.00019178,2]
[330521152,1719558669456,-500.0,0.00019178,2]
[330521153,1719558669465,-1681.68,0.00019178,2]
[330521154,1719558669475,-2736.27,0.00019178,2]
[330521155,1719558669484,-500.0,0.00019178,2]
[330521156,1719558669494,-500.0,0.00019178,2]
[330521157,1719558669503,-570.56,0.00019178,2]
[330521158,1719558669513,-2927.8,0.00019178,2]
[330521159,1719558669523,-1000.0,0.00019178,2]
[330521160,1719558669533,-500.0,0.00019178,2]
[330521161,1719558669542,-500.0,0.00019178,2]
[330521162,1719558669552,-500.0,0.00019178,2]
[330521163,1719558669562,-500.0,0.00019178,2]
[330521164,1719558669571,-500.0,0.00019178,2]
[330521165,1719558669581,-500.0,0.00019178,2]
[330521166,1719558669590,-500.0,0.00019178,2]
[330521167,1719558669600,-974.29,0.00019178,2]
[330521168,1719558669609,-600.04,0.00019178,2]
[330521169,1719558669620,-3716.76,0.00019178,2]
[330521170,1719558669630,-2645.45,0.00019178,2]
[330521171,1719558669640,-3343.49,0.00019178,2]
[330521172,1719558669650,-1332.34,0.00019178,2]
[330521173,1719558669659,-3343.49,0.00019178,2]
[330521174,1719558669669,-725.99,0.00019178,2]
[330521175,1719558669678,-3343.49,0.00019178,2]
[330521176,1719558669688,-3343.49,0.00019178,2]
[330521177,1719558669698,-500.0,0.00019178,2]
[330521178,1719558669708,-500.0,0.00019178,2]
[330521179,1719558669718,-3343.49,0.00019178,2]
[330521180,1719558669728,-500.0,0.00019178,2]
[330521181,1719558669737,-1869.56,0.00019178,2]
[330521182,1719558669747,-500.0,0.00019178,2]
[330521183,1719558669757,-500.0,0.00019178,2]
[330521184,1719558669767,-3343.49,0.00019178,2]
[330521185,1719558669777,-4816.09,0.00019178,2]
[330521186,1719558669786,-3343.49,0.00019178,2]
[330521187,1719558669796,-500.0,0.00019178,2]
[330521188,1719558669805,-157.827703,0.00019178,2]
[330521189,1719558669814,-3343.49,0.00019178,2]
[330521190,1719558669825,-151.0,0.00019178,2]
[330521191,1719558669834,-3343.49,0.00019178,2]
[330521192,1719558669844,-500.0,0.00019178,2]
[330521193,1719558669853,-151.0,0.00019178,2]
[330521194,1719558669862,-151.0,0.00019178,2]
[330521195,1719558669871,-151.0,0.00019178,2]
[330521196,1719558669881,-151.0,0.00019178,2]
[330521197,1719558669890,-500.0,0.00019178,2]
[330521198,1719558669900,-2529.03,0.00019178,2]
[330521199,1719558669909,-151.0,0.00019178,2]
[330521200,1719558669919,-2526.58,0.00019178,2]
[330521201,1719558669929,-500.0,0.00019178,2]
[330521202,1719558669938,-1689.43,0.00019178,2]
[330521203,1719558669948,-568.89,0.00019178,2]
[330521204,1719558669958,-3343.49,0.00019178,2]
[330521205,1719558669967,-500.0,0.00019178,2]
[330521206,1719558669978,-2532.97,0.00019178,2]
[330521207,1719558669987,-3343.49,0.00019178,2]
[330521208,1719558669998,-151.0,0.00019178,2]
[330521209,1719558670008,-500.0,0.00019178,2]
[330521210,1719558670018,-533.2,0.00019178,2]
[330521211,1719558670028,-151.0,0.00019178,2]
[330521212,1719558670037,-3343.49,0.00019178,2]
[330521213,1719558670047,-151.0,0.00019178,2]
[330521214,1719558670057,-172.240193,0.00019178,2]
[330521215,1719558670070,-500.0,0.00019178,2]
[330521216,1719558670086,-3343.49,0.00019178,2]
[330521217,1719558670096,-3343.49,0.00019178,2]
[330521218,1719558670105,-3343.49,0.00019178,2]
[330521219,1719558670117,-524.64,0.00019178,2]
[330521220,1719558670128,-814.89,0.00019178,2]
[330521221,1719558670139,-3343.49,0.00019178,2]
[330521222,1719558670150,-500.0,0.00019178,2]
[330521223,1719558670160,-500.0,0.00019178,2]
[330521224,1719558670171,-910.4,0.00019178,2]
[330521225,1719558670180,-154.636986,0.00019178,2]
[330521226,1719558670190,-1485.58,0.00019178,2]
[330521227,1719558670199,-1069.34,0.00019178,2]
[330521228,1719558670210,-1244.54,0.00019178,2]
[330521229,1719558670219,-500.0,0.00019178,2]
[330521230,1719558670229,-500.0,0.00019178,2]
[330521231,1719558670238,-4176.53,0.00019178,2]
[330521232,1719558670248,-500.0,0.00019178,2]
[330521233,1719558670257,-13952.2,0.00019178,2]
[330521234,1719558670267,-500.0,0.00019178,2]
[330521235,1719558670277,-500.0,0.00019178,2]
[330521236,1719558670287,-3103.27,0.00019178,2]
[330521237,1719558670297,-1756.63,0.00019178,2]
[330521238,1719558670307,-151.0,0.00019178,2]
[330521239,1719558670316,-500.0,0.00019178,2]
[330521240,1719558670327,-151.0,0.00019178,2]
[330521241,1719558670337,-633.69,0.00019178,2]
[330521242,1719558670346,-500.0,0.00019178,2]
[330521243,1719558670356,-500.0,0.00019178,2]
[330521244,1719558670367,-152.323937,0.00019178,2]
[330521245,1719558670377,-174.06132687,0.00019178,2]
[330521246,1719558670387,-500.0,0.00019178,2]
[330521247,1719558670398,-1600.83,0.00019178,2]
[330521248,1719558670407,-993.18,0.00019178,2]
[330521249,1719558670417,-749.62,0.00019178,2]
[330521250,1719558670427,-601.89,0.00019178,2]
[330521251,1719558670437,-1061.29,0.00019178,2]
[330521252,1719558670447,-2146.7,0.00019178,2]
[330521253,1719558670456,-500.0,0.00019178,2]
[330521254,1719558670466,-3501.79,0.00019178,2]
[330521255,1719558670475,-1017.07,0.00019178,2]
[330521256,1719558670485,-500.0,0.00019178,2]
[330521257,1719558670495,-500.0,0.00019178,2]
[330521258,1719558670504,-458.11819023,0.00019178,2]
[330521259,1719558670514,-500.44728197,0.00019178,2]
[330521260,1719558670523,-500.0,0.00019178,2]
[330521261,1719558670534,-500.0,0.00019178,2]
[330521262,1719558670544,-500.0,0.00019178,2]
[330521263,1719558670553,-500.0,0.00019178,2]
[330521264,1719558670563,-500.0,0.00019178,2]
[330521265,1719558670572,-500.0,0.00019178,2]
[330521266,1719558670582,-3024.66,0.00019178,2]
[330521267,1719558670592,-10650.33,0.00019178,2]
[330521268,1719558670601,-500.0,0.00019178,2]
[330521269,1719558670611,-1017.08,0.00019178,2]
[330521270,1719558670621,-520.0,0.00019178,2]
[330521271,1719558670630,-794.12,0.00019178,2]
[330521272,1719558670640,-954.93,0.00019178,2]
[330521273,1719558670649,-554.46,0.00019178,2]
[330521274,1719558670658,-755.52,0.00019178,2]
[330521275,1719558670668,-500.0,0.00019178,2]
[330521276,1719558670677,-1734.14,0.00019178,2]
[330521277,1719558670687,-1216.25,0.00019178,2]
[330521278,1719558670696,-1243.61,0.00019178,2]
[330521279,1719558670706,-500.0,0.00019178,2]
[330521280,1719558670716,-500.0,0.00019178,2]
[330521281,1719558670726,-500.0,0.00019178,2]
[330521282,1719558670735,-578.3,0.00019178,2]
[330521283,1719558670745,-500.0,0.00019178,2]
[330521284,1719558670754,-500.0,0.00019178,2]
[330521285,1719558670764,-555.95,0.00019178,2]
[330521286,1719558670774,-580.2740836,0.00019178,2]
[330521287,1719558670783,-500.0,0.00019178,2]
[330521288,1719558670793,-813.0,0.00019178,2]
[330521289,1719558670802,-500.0,0.00019178,2]
[330521290,1719558670812,-500.0,0.00019178,2]
[330521291,1719558670821,-590.8,0.00019178,2]
[330521292,1719558670831,-951.37,0.00019178,2]
[330521293,1719558670840,-500.0,0.00019178,2]
[330521294,1719558670850,-500.0,0.00019178,2]
[330521295,1719558670860,-7506.09,0.00019178,2]
[330521296,1719558670870,-1092.13,0.00019178,2]
[330521297,1719558670879,-908.75,0.00019178,2]
[330521298,1719558670889,-500.0,0.00019178,2]
[330521299,1719558670898,-4816.96,0.00019178,2]
[330521300,1719558670908,-3503.4,0.00019178,2]
[330521301,1719558670918,-5180.87,0.00019178,2]
[330521302,1719558670928,-835.47,0.00019178,2]
[330521303,1719558670937,-155.80564156,0.00019178,2]
[330521304,1719558670947,-500.0,0.00019178,2]
[330521305,1719558670957,-500.0,0.00019178,2]
[330521306,1719558670967,-14563.04,0.00019178,2]
[330521307,1719558670977,-500.0,0.00019178,2]
[330521308,1719558670987,-500.0,0.00019178,2]
[330521309,1719558670996,-1615.02,0.00019178,2]
[330521310,1719558671111,-151.0,0.00019178,2]
[330521311,1719558671120,-151.0,0.00019178,2]
[330521312,1719558671131,-151.0,0.00019178,2]
[330521313,1719558671140,-4444.55,0.00019178,2]
[330521314,1719558671151,-151.0,0.00019178,2]
[330521315,1719558671165,-151.0,0.00019178,2]
[330521316,1719558671175,-240.197336,0.00019178,2]
[330521317,1719558671185,-300.788823,0.00019178,2]
[330521318,1719558671194,-240.197336,0.00019178,2]
[330521319,1719558671204,-240.197336,0.00019178,2]
[330521320,1719558671213,-240.197336,0.00019178,2]
[330521321,1719558671222,-507.08,0.00019178,2]
[330521322,1719558671231,-583.1,0.00019178,2]
[330521323,1719558671241,-6064.42,0.00019178,2]
[330521324,1719558671251,-769.23,0.00019178,2]
[330521325,1719558671260,-770.69,0.00019178,2]
[330521326,1719558671270,-240.197336,0.00019178,2]
[330521327,1719558671279,-500.0,0.00019178,2]
[330521328,1719558671288,-3759.51,0.00019178,2]
[330521329,1719558671298,-500.0,0.00019178,2]
[330521330,1719558671307,-540.39448654,0.00019178,2]
[330521331,1719558671317,-240.197336,0.00019178,2]
[330521332,1719558671327,-500.0,0.00019178,2]
[330521333,1719558671336,-500.0,0.00019178,2]
[330521334,1719558671345,-1813.3,0.00019178,2]
[330521335,1719558671355,-693.79,0.00019178,2]
[330521336,1719558671365,-500.0,0.00019178,2]
[330521337,1719558671374,-1497.01,0.00019178,2]
[330521338,1719558671383,-240.197336,0.00019178,2]
[330521339,1719558671393,-240.197336,0.00019178,2]
[330521340,1719558671403,-30399.77,0.00019178,2]
[330521341,1719558671412,-500.0,0.00019178,2]
[330521342,1719558671421,-240.197336,0.00019178,2]
[330521343,1719558671430,-500.0,0.00019178,2]
[330521344,1719558671438,-240.197336,0.00019178,2]
[330521345,1719558671448,-534.73213721,0.00019178,2]
[330521346,1719558671456,-500.0,0.00019178,2]
[330521347,1719558671466,-240.197336,0.00019178,2]
[330521348,1719558671474,-240.197336,0.00019178,2]
[330521349,1719558671483,-2796.72,0.00019178,2]
[330521350,1719558671492,-394.40021071,0.00019178,2]
[330521351,1719558671501,-500.0,0.00019178,2]
[330521352,1719558671510,-856.91,0.00019178,2]
[330521353,1719558671520,-1740.9,0.00019178,2]
[330521354,1719558671528,-614.07,0.00019178,2]
[330521355,1719558671537,-500.0,0.00019178,2]
[330521356,1719558671547,-500.0,0.00019178,2]
[330521357,1719558671555,-4177.26,0.00019178,2]
[330521358,1719558671564,-588.09687763,0.00019178,2]
[330521359,1719558671573,-3229.61,0.00019178,2]
[330521360,1719558671582,-632.39,0.00019178,2]
[330521361,1719558671591,-1210.69,0.00019178,2]
[330521362,1719558671601,-1257.33,0.00019178,2]
[330521363,1719558671610,-1162.49,0.00019178,2]
[330521364,1719558671620,-500.0,0.00019178,2]
[330521365,1719558671628,-565.24,0.00019178,2]
[330521366,1719558671637,-500.0,0.00019178,2]
[330521367,1719558671645,-2511.35,0.00019178,2]
[330521368,1719558671654,-1855.43,0.00019178,2]
[330521369,1719558671664,-500.0,0.00019178,2]
[330521370,1719558671673,-500.0,0.00019178,2]
[330521371,1719558671682,-500.0,0.00019178,2]
[330521372,1719558671691,-666.88,0.00019178,2]
[330521373,1719558671700,-151.0,0.00019178,2]
[330521374,1719558671709,-151.0,0.00019178,2]
[330521375,1719558671718,-151.0,0.00019178,2]
[330521376,1719558671727,-1469.58,0.00019178,2]
[330521377,1719558671736,-151.0,0.00019178,2]
[330521378,1719558671745,-151.0,0.00019178,2]
[330521379,1719558671755,-25767.36,0.00019178,2]
[330521380,1719558671764,-151.0,0.00019178,2]
[330521381,1719558671773,-532.31,0.00019178,2]
[330521382,1719558671782,-1063.15,0.00019178,2]
[330521383,1719558671791,-4055.72,0.00019178,2]
[330521384,1719558671799,-1507.76,0.00019178,2]
[330521385,1719558671808,-537.3895803,0.00019178,2]
[330521386,1719558671817,-2043.65,0.00019178,2]
[330521387,1719558671826,-4765.75,0.00019178,2]
[330521388,1719558671835,-500.0,0.00019178,2]
[330521389,1719558671844,-1952.77,0.00019178,2]
[330521390,1719558671853,-151.0,0.00019178,2]
[330521391,1719558671863,-151.0,0.00019178,2]
[330521392,1719558671872,-9013.41,0.00019178,2]
[330521393,1719558671881,-283.53563,0.00019178,2]
[330521394,1719558671890,-342.59441945,0.00019178,2]
[330521395,1719558671899,-59498.43,0.00019178,2]
[330521396,1719558671908,-11504.4,0.00019178,2]
[330521397,1719558671917,-151.0,0.00019178,2]
[330521398,1719558671926,-500.0,0.00019178,2]
[330521399,1719558671935,-151.0,0.00019178,2]
[330521400,1719558671943,-151.0,0.00019178,2]
[330521401,1719558671952,-773.13,0.00019178,2]
[330521402,1719558671961,-500.0,0.00019178,2]
[330521403,1719558671970,-151.0,0.00019178,2]
[330521404,1719558671979,-500.0,0.00019178,2]
[330521405,1719558671988,-151.0,0.00019178,2]
[330521406,1719558671998,-151.0,0.00019178,2]
[330521407,1719558672006,-64173.59,0.00019178,2]
[330521408,1719558672015,-10059.3,0.00019178,2]
[330521409,1719558672025,-151.0,0.00019178,2]
[330521410,1719558672034,-1370.76,0.00019178,2]
[330521411,1719558672043,-151.0,0.00019178,2]
[330521412,1719558672052,-151.0,0.00019178,2]
[330521413,1719558672061,-151.0,0.00019178,2]
[330521414,1719558672071,-151.0,0.00019178,2]
[330521415,1719558672083,-151.0,0.00019178,2]
[330521416,1719558672093,-151.0,0.00019178,2]
[330521417,1719558672102,-500.0,0.00019178,2]
[330521418,1719558672111,-232.024978,0.00019178,2]
[330521419,1719558672121,-151.0,0.00019178,2]
[330521420,1719558672131,-500.0,0.00019178,2]
[330521421,1719558672143,-280.064129,0.00019178,2]
[330521422,1719558672152,-230.136879,0.00019178,2]
[330521423,1719558672165,-280.064129,0.00019178,2]
[330521424,1719558672174,-280.064129,0.00019178,2]
[330521425,1719558672184,-500.0,0.00019178,2]
[330521426,1719558672193,-503.12117707,0.00019178,2]
[330521427,1719558672202,-280.064129,0.00019178,2]
[330521428,1719558672212,-500.0,0.00019178,2]
[330521429,1719558672222,-280.064129,0.00019178,2]
[330521430,1719558672231,-500.0,0.00019178,2]
[330521431,1719558672240,-871.21,0.00019178,2]
[330521432,1719558672250,-5446.0,0.00019178,2]
[330521433,1719558672260,-280.064129,0.00019178,2]
[330521434,1719558672270,-2967.26,0.00019178,2]
[330521435,1719558672279,-1235.17,0.00019178,2]
[330521436,1719558672289,-837.7,0.00019178,2]
[330521437,1719558672298,-1223.2,0.00019178,2]
[330521438,1719558672308,-500.0,0.00019178,2]
[330521439,1719558672318,-500.0,0.00019178,2]
[330521440,1719558672328,-521.74,0.00019178,2]
[330521441,1719558672337,-280.064129,0.00019178,2]
[330521442,1719558672347,-280.064129,0.00019178,2]
[330521443,1719558672356,-196.03312,0.00019178,2]
[330521444,1719558672366,-196.03312,0.00019178,2]
[330521445,1719558672375,-196.03312,0.00019178,2]
[330521446,1719558672384,-151.0,0.00019178,2]
[330521447,1719558672393,-280.064129,0.00019178,2]
[330521448,1719558672402,-647.11,0.00019178,2]
[330521449,1719558672411,-196.03312,0.00019178,2]
[330521450,1719558672420,-151.0,0.00019178,2]
[330521451,1719558672429,-280.064129,0.00019178,2]
[330521452,1719558672440,-1156.86,0.00019178,2]
[330521453,1719558672449,-1401.97,0.00019178,2]
[330521454,1719558672458,-151.0,0.00019178,2]
[330521455,1719558672466,-280.064129,0.00019178,2]
[330521456,1719558672475,-280.064129,0.00019178,2]
[330521457,1719558672484,-626.75,0.00019178,2]
[330521458,1719558672494,-196.03312,0.00019178,2]
[330521459,1719558672503,-500.0,0.00019178,2]
[330521460,1719558672512,-196.03312,0.00019178,2]
[330521461,1719558672521,-632.43,0.00019178,2]
[330521462,1719558672530,-151.0,0.00019178,2]
[330521463,1719558672539,-151.0,0.00019178,2]
[330521464,1719558672548,-196.03312,0.00019178,2]
[330521465,1719558672557,-151.0,0.00019178,2]
[330521466,1719558672566,-196.03312,0.00019178,2]
[330521467,1719558672575,-151.0,0.00019178,2]
[330521468,1719558672584,-196.03312,0.00019178,2]
[330521469,1719558672592,-585.43,0.00019178,2]